bitfinex/quotes_BTCUSD_20220218
["timestamp","ask_amount","ask_price","bid_price","bid_amount"]
[1645212673750,0.00345145,40253.0,40250.0,0.1]
[1645212674153,0.00345145,40253.0,40251.0,0.26080686]
[1645212674751,0.00345145,40253.0,40252.0,0.0498]
[1645212677902,0.06212948,40262.0,40260.0,0.13352753]
[1645212678100,0.21102472,40261.0,40260.0,0.13352753]
[1645212678702,0.26386556,40265.0,40260.0,0.13352753]
[1645212678947,0.26386556,40266.0,40260.0,0.18352753]
[1645212679350,0.07451008,40264.0,40260.0,0.18352753]
[1645212679548,0.07451008,40264.0,40261.0,0.24]
[1645212680349,0.332743,40262.0,40261.0,0.24]
[1645212680549,0.07451008,40264.0,40261.0,0.24]
[1645212680550,0.332743,40263.0,40261.0,0.24]
[1645212680949,0.33837564,40264.0,40261.0,0.24]
[1645212681549,0.26416344,40262.0,40261.0,0.24]
[1645212681749,0.75726371,40262.0,40261.0,0.24]
[1645212681954,0.82614115,40262.0,40261.0,0.15754817]
[1645212682149,1.14273854,40262.0,40260.0,0.13352753]
[1645212682348,0.332743,40261.0,40260.0,0.13352753]
[1645212682603,0.59653967,40261.0,40260.0,0.13352753]
[1645212682798,0.332743,40261.0,40260.0,0.13352753]
[1645212682998,0.59653971,40261.0,40260.0,0.13352753]
[1645212683200,0.26379671,40261.0,40260.0,0.13352753]
[1645212683399,0.2110242,40261.0,40260.0,0.13352753]
[1645212683798,0.38183526,40263.0,40260.0,0.13352753]
[1645212683799,0.2110242,40262.0,40260.0,0.13352753]
[1645212683999,0.2110242,40261.0,40260.0,0.13352753]
[1645212684602,0.26379671,40262.0,40260.0,0.13352753]
[1645212684799,0.26379671,40261.0,40260.0,0.13352753]
[1645212685398,1.10688096,40263.0,40260.0,0.13352753]
[1645212685399,0.32592666,40262.0,40260.0,0.13352753]
[1645212686199,1.08522666,40262.0,40260.0,0.13352753]
[1645212686644,0.82142995,40262.0,40260.0,0.13352753]
[1645212687148,0.97033208,40261.0,40260.0,0.13352753]
[1645212687345,0.7593,40261.0,40260.0,0.13352753]
[1645212688045,0.00109294,40261.0,40260.0,0.13352753]
[1645212694244,0.00109294,40261.0,40260.0,0.14330953]
[1645212696144,0.00109294,40261.0,40260.0,0.19310953]
[1645212696945,0.00109294,40261.0,40260.0,0.25521553]
[1645212697145,0.00109294,40261.0,40260.0,0.30521553]
[1645212697898,0.00109294,40261.0,40260.0,0.31543453]
[1645212698599,0.00109294,40261.0,40260.0,0.66275513]
[1645212698804,0.00109294,40261.0,40260.0,0.81275513]
[1645212699002,0.00109294,40261.0,40260.0,1.12266033]
[1645212699502,6.121e-05,40262.0,40261.0,0.009781]
[1645212699702,6.121e-05,40262.0,40261.0,0.6069016]
[1645212699901,6.121e-05,40262.0,40261.0,0.9168068]
[1645212700205,6.121e-05,40262.0,40261.0,0.9263068]
[1645212700402,6.121e-05,40262.0,40261.0,0.6164016]
[1645212700601,6.121e-05,40262.0,40261.0,0.7164016]
[1645212701001,6.121e-05,40262.0,40261.0,0.6164016]
[1645212702054,0.00038465,40269.0,40262.0,4.547e-05]
[1645212702351,0.00038465,40269.0,40265.0,0.009772]
[1645212702552,0.00038465,40269.0,40268.0,0.1]
[1645212702753,6.322e-05,40269.0,40268.0,0.159767]
[1645212702950,6.322e-05,40269.0,40268.0,0.44935428]
[1645212703150,6.322e-05,40269.0,40268.0,0.79667488]
[1645212703354,0.00032143,40271.0,40268.0,1.61867488]
[1645212703552,0.0031832,40274.0,40272.0,1.25]
[1645212703755,0.00345284,40277.0,40273.0,0.75976]
[1645212703960,0.0042247,40278.0,40275.0,0.110219]
[1645212704151,0.0042247,40278.0,40276.0,1.76275661]
[1645212704351,0.0042247,40278.0,40277.0,0.3570726]
[1645212704552,0.0042247,40278.0,40277.0,0.4068726]
[1645212704752,2.47e-05,40278.0,40277.0,0.5068726]
[1645212704952,2.47e-05,40278.0,40277.0,0.5163726]
[1645212705404,0.0039323,40287.0,40278.0,1.059751]
[1645212705405,0.0002811,40286.0,40278.0,1.059751]
[1645212705601,0.01170548,40289.0,40284.0,0.1]
[1645212705897,0.01170548,40289.0,40288.0,0.1]
[1645212706097,0.01170548,40289.0,40287.0,0.009733]
[1645212706298,0.01170548,40289.0,40285.0,0.0498]
[1645212708300,0.01170548,40289.0,40286.0,0.110219]
[1645212708500,0.23208247,40288.0,40286.0,0.010219]
[1645212708702,0.23208247,40288.0,40279.0,0.010219]
[1645212708703,0.332702,40287.0,40279.0,0.010219]
[1645212708954,0.23208247,40288.0,40278.0,0.0093]
[1645212709149,0.05,40287.0,40278.0,0.0093]
[1645212709353,0.34504675,40286.0,40278.0,0.019519]
[1645212709551,0.12419176,40287.0,40278.0,0.019519]
[1645212709752,6.283e-05,40285.0,40278.0,0.019519]
[1645212710555,0.18628476,40287.0,40278.0,0.019519]
[1645212710752,0.06208996,40287.0,40278.0,0.019519]
[1645212710951,6.283e-05,40284.0,40280.0,0.010219]
[1645212711151,6.283e-05,40284.0,40280.0,0.060019]
[1645212711754,0.45280186,40287.0,40280.0,0.060019]
[1645212711954,0.24695817,40281.0,40278.0,0.0093]
[1645212712153,0.24695817,40281.0,40276.0,0.010219]
[1645212712154,0.13331303,40279.0,40276.0,0.010219]
[1645212712355,0.13331303,40279.0,40272.0,0.010219]
[1645212712605,0.332702,40278.0,40272.0,0.010219]
[1645212712999,0.13331303,40279.0,40272.0,0.010219]
[1645212713203,0.332702,40278.0,40272.0,0.010219]
[1645212713401,0.89267586,40279.0,40272.0,0.010219]
[1645212713600,0.94267586,40279.0,40272.0,0.010219]
[1645212713803,0.12422099,40277.0,40272.0,0.010219]
[1645212714406,0.332702,40278.0,40277.0,0.27231101]
[1645212714604,6.283e-05,40279.0,40277.0,0.29228201]
[1645212714804,6.283e-05,40279.0,40278.0,0.00975]
[1645212715003,6.283e-05,40279.0,40277.0,0.28253001]
[1645212715202,6.283e-05,40279.0,40278.0,0.34620788]
[1645212715406,0.0021144,40287.0,40278.0,0.46505788]
[1645212715604,0.0021144,40287.0,40283.0,0.010219]
[1645212715807,0.00025129,40286.0,40283.0,0.33654369]
[1645212716201,0.00025129,40286.0,40283.0,0.010219]
[1645212716643,0.0021144,40287.0,40283.0,0.010219]
[1645212717045,0.0021144,40287.0,40284.0,0.27864182]
[1645212717646,0.0021144,40287.0,40285.0,0.36616488]
[1645212717847,0.0021144,40287.0,40286.0,0.019955]
[1645212718045,0.00107111,40287.0,40286.0,0.36616288]
[1645212718244,0.01170548,40289.0,40287.0,0.009735]
[1645212718448,0.01170548,40289.0,40288.0,0.010219]
[1645212718647,0.01170548,40289.0,40288.0,0.019952]
[1645212719046,0.01170548,40289.0,40288.0,0.010219]
[1645212719446,0.01170548,40289.0,40288.0,0.119952]
[1645212719647,0.01170548,40289.0,40288.0,0.46615988]
[1645212719847,0.01170548,40289.0,40288.0,0.269752]
[1645212720500,0.01170548,40289.0,40288.0,0.61595988]
[1645212721200,0.01170548,40289.0,40288.0,0.269752]
[1645212721399,0.01170548,40289.0,40288.0,0.51595988]
[1645212721801,0.01170548,40289.0,40288.0,0.61595988]
[1645212722302,0.0063765,40294.0,40290.0,1.4]
[1645212722504,0.00670722,40294.0,40293.0,0.732419]
[1645212722701,0.00670722,40294.0,40293.0,0.772]
[1645212723103,0.00670722,40294.0,40293.0,0.872]
[1645212723302,0.00670722,40294.0,40293.0,0.891942]
[1645212723706,0.00670722,40294.0,40293.0,0.672]
[1645212723953,0.00670722,40294.0,40290.0,0.010219]
[1645212724252,0.00670722,40294.0,40289.0,0.010219]
[1645212724453,0.00670722,40294.0,40291.0,0.010219]
[1645212724652,0.00670722,40294.0,40293.0,0.26640454]
[1645212724851,0.00670722,40294.0,40293.0,0.31620454]
[1645212725254,0.00670722,40294.0,40293.0,0.41620454]
[1645212725457,0.00670722,40294.0,40293.0,0.51620454]
[1645212725854,0.00670722,40294.0,40293.0,0.41620454]
[1645212726061,0.00670722,40294.0,40293.0,0.31620454]
[1645212726254,0.00670722,40294.0,40293.0,0.159524]
[1645212726655,0.00670722,40294.0,40293.0,0.059524]
[1645212726855,0.00670722,40294.0,40293.0,0.009724]
[1645212727696,0.2251288,40294.0,40293.0,0.009724]
[1645212727899,0.2251288,40294.0,40291.0,0.009724]
[1645212728095,0.2251288,40294.0,40290.0,0.010219]
[1645212728295,0.2251288,40294.0,40291.0,0.009726]
[1645212728497,0.2251288,40294.0,40292.0,0.00111528]
[1645212728498,0.00098831,40293.0,40292.0,0.00111528]
[1645212728699,0.00098831,40293.0,40292.0,0.02105928]
[1645212728895,0.00365672,40294.0,40292.0,0.02105928]
[1645212729096,0.00365672,40294.0,40293.0,0.010219]
[1645212729300,0.00365672,40294.0,40293.0,0.019942]
[1645212729899,0.00365672,40294.0,40293.0,0.069742]
[1645212730301,0.00365672,40294.0,40293.0,0.059523]
[1645212730499,0.00365672,40294.0,40293.0,0.069742]
[1645212732345,0.00365672,40294.0,40292.0,0.00111528]
[1645212733347,0.00099763,40293.0,40291.0,0.010219]
[1645212733547,0.00132835,40293.0,40291.0,0.010219]
[1645212733951,0.00132835,40293.0,40292.0,0.009725]
[1645212734549,0.00132835,40293.0,40292.0,0.019944]
[1645212734750,0.00132835,40293.0,40292.0,0.31209824]
[1645212736394,0.00132835,40293.0,40292.0,0.41209824]
[1645212737201,0.00132835,40293.0,40292.0,0.31209824]
[1645212737594,0.00132835,40293.0,40292.0,0.019944]
[1645212737795,0.00132835,40293.0,40292.0,0.36615188]
[1645212737995,0.00132835,40293.0,40292.0,0.01074897]
[1645212738696,0.00132835,40293.0,40292.0,0.34927917]
[1645212739343,0.00132835,40293.0,40292.0,0.03118697]
[1645212740746,0.00132835,40293.0,40292.0,0.71117757]
[1645212741147,0.00132835,40293.0,40292.0,0.81117757]
[1645212742145,0.00132835,40293.0,40292.0,0.71117757]
[1645212742604,0.00132835,40293.0,40292.0,0.03118697]
[1645212742798,0.00132835,40293.0,40292.0,0.030163]
[1645212743598,0.00132835,40293.0,40292.0,0.38424368]
[1645212744603,0.0043,40297.0,40292.0,0.38424368]
[1645212744604,0.00439065,40301.0,40300.0,0.52255642]
[1645212744801,0.00439065,40301.0,40300.0,0.50726742]
[1645212744802,0.00505209,40301.0,40300.0,0.50726742]
[1645212745602,0.00386144,40301.0,40300.0,0.50726742]
[1645212745802,0.00386144,40301.0,40300.0,0.51748642]
[1645212746002,0.00386144,40301.0,40300.0,0.50726742]
[1645212748145,0.00386144,40301.0,40300.0,0.51748642]
[1645212749246,0.00386144,40301.0,40300.0,0.52770542]
[1645212749447,0.00386144,40301.0,40300.0,0.87243596]
[1645212749648,0.00386144,40301.0,40300.0,0.52770542]
[1645212749856,0.00386144,40301.0,40300.0,0.57750542]
[1645212750601,0.00386144,40301.0,40300.0,2.34856304]
[1645212750801,0.00386144,40301.0,40300.0,0.57750542]
[1645212751801,0.00386144,40301.0,40300.0,0.92223596]
[1645212752603,0.00386144,40301.0,40300.0,0.56728642]
[1645212752803,0.00386144,40301.0,40300.0,0.55706742]
[1645212753202,0.00386144,40301.0,40300.0,0.50726742]
[1645212753403,0.00386144,40301.0,40300.0,0.49755642]
[1645212753604,0.33656344,40301.0,40300.0,0.49755642]
[1645212753859,0.00386144,40301.0,40300.0,0.50726742]
[1645212754055,0.00386144,40301.0,40300.0,0.49755642]
[1645212754255,0.00386144,40301.0,40300.0,0.51748642]
[1645212754456,0.00386144,40301.0,40300.0,0.52770542]
[1645212754656,0.00326268,40303.0,40300.0,0.52770542]
[1645212754657,0.00245692,40303.0,40301.0,0.00971]
[1645212754856,0.00245692,40303.0,40301.0,0.019929]
[1645212755062,0.0043,40304.0,40301.0,0.019929]
[1645212755063,0.00175692,40304.0,40302.0,0.010219]
[1645212755260,0.00175692,40304.0,40303.0,0.019925]
[1645212755458,0.00175692,40304.0,40303.0,0.36465554]
[1645212755459,0.0018196,40304.0,40303.0,0.36465554]
[1645212755657,0.0018196,40304.0,40303.0,0.46445554]
[1645212755857,0.0018196,40304.0,40303.0,0.219725]
[1645212756462,0.0031554,40317.0,40303.0,0.169725]
[1645212756662,0.01676248,40311.0,40305.0,0.162048]
[1645212756861,0.01676248,40311.0,40310.0,0.1]
[1645212757060,0.01676248,40311.0,40310.0,0.009693]
[1645212757260,0.01676248,40311.0,40310.0,0.109693]
[1645212757461,0.01676248,40311.0,40310.0,0.009693]
[1645212758103,0.00676248,40311.0,40310.0,0.009693]
[1645212758700,0.00676248,40311.0,40310.0,0.030131]
[1645212758901,0.00676248,40311.0,40310.0,0.019912]
[1645212759099,0.00676248,40311.0,40310.0,0.130131]
[1645212759303,0.00676248,40311.0,40310.0,0.030131]
[1645212760102,0.00676248,40311.0,40310.0,0.019912]
[1645212760308,0.00676248,40311.0,40310.0,0.130131]
[1645212760702,0.00676248,40311.0,40310.0,0.47336514]
[1645212760903,0.00676248,40311.0,40310.0,0.57336514]
[1645212761203,0.00676248,40311.0,40310.0,0.47336514]
[1645212761652,0.00676248,40311.0,40310.0,0.37336514]
[1645212761854,6.482e-05,40313.0,40310.0,0.019912]
[1645212761855,0.02788661,40312.0,40310.0,0.019912]
[1645212762054,0.02788661,40312.0,40311.0,0.109693]
[1645212762254,0.02788661,40312.0,40311.0,0.119912]
[1645212762859,0.02788661,40312.0,40311.0,0.019912]
[1645212763855,0.02788661,40312.0,40311.0,0.009693]
[1645212764055,0.01788661,40312.0,40310.0,0.001274]
[1645212764454,0.01788661,40312.0,40310.0,0.011493]
[1645212764654,0.01788661,40312.0,40311.0,0.009692]
[1645212764854,0.01788661,40312.0,40311.0,0.30230814]
[1645212765301,0.01788661,40312.0,40311.0,0.019911]
[1645212765506,0.01788661,40312.0,40310.0,0.011493]
[1645212765900,0.01788661,40312.0,40311.0,0.009692]
[1645212766303,0.01788661,40312.0,40311.0,0.13013]
[1645212766501,0.01788661,40312.0,40311.0,0.03013]
[1645212768947,0.01788661,40312.0,40311.0,0.36689975]
[1645212769148,0.01788661,40312.0,40311.0,0.46689975]
[1645212769950,0.01788661,40312.0,40311.0,0.85993389]
[1645212770151,0.01788661,40312.0,40311.0,0.51669975]
[1645212770448,0.01788661,40312.0,40311.0,0.61669975]
[1645212770655,0.0010198,40314.0,40312.0,1.05]
[1645212770848,0.0010198,40314.0,40313.0,0.293749]
[1645212771252,0.00108498,40314.0,40313.0,0.293749]
[1645212771449,0.00108498,40314.0,40313.0,0.393749]
[1645212771850,0.00108498,40314.0,40313.0,0.493749]
[1645212772051,0.0010198,40314.0,40313.0,0.83698314]
[1645212772253,0.00160416,40315.0,40314.0,1.4]
[1645212772451,0.00160416,40315.0,40314.0,0.069705]
[1645212772697,0.00160416,40315.0,40314.0,0.55988246]
[1645212773098,0.00160416,40315.0,40314.0,0.62190246]
[1645212773304,0.00123819,40322.0,40314.0,0.62190246]
[1645212773305,0.22793059,40332.0,40315.0,0.009686]
[1645212773499,0.07438446,40332.0,40326.0,0.1]
[1645212773698,0.14354613,40333.0,40327.0,0.01988]
[1645212773897,0.14354613,40333.0,40328.0,0.010219]
[1645212774198,0.00123896,40334.0,40329.0,0.010219]
[1645212774597,1.45,40333.0,40329.0,0.010219]
[1645212774798,1.45,40333.0,40330.0,0.009659]
[1645212774998,0.00031822,40332.0,40327.0,0.06201]
[1645212775200,0.00031822,40332.0,40326.0,0.124019]
[1645212775201,0.22209936,40331.0,40326.0,0.124019]
[1645212775400,0.28411836,40331.0,40322.0,0.5474257]
[1645212775601,0.40097901,40330.0,40321.0,0.0498]
[1645212775808,0.11793523,40322.0,40321.0,0.0498]
[1645212775999,0.11793523,40322.0,40321.0,0.059467]
[1645212776201,0.01001822,40329.0,40321.0,0.059467]
[1645212776202,6.192e-05,40329.0,40321.0,0.059467]
[1645212776455,0.00031822,40326.0,40321.0,0.3989927]
[1645212776654,6.192e-05,40329.0,40325.0,0.109667]
[1645212776851,6.192e-05,40329.0,40326.0,0.009664]
[1645212777055,0.00031822,40331.0,40327.0,0.124015]
[1645212777253,6.192e-05,40329.0,40328.0,0.019461]
[1645212778253,0.00031822,40331.0,40328.0,0.081468]
[1645212778459,0.00031822,40331.0,40328.0,0.019461]
[1645212778460,0.29676615,40331.0,40328.0,0.019461]
[1645212778653,6.192e-05,40331.0,40328.0,0.0098]
[1645212778856,6.192e-05,40331.0,40329.0,0.00966]
[1645212779054,6.192e-05,40331.0,40329.0,0.009659]
[1645212779255,6.192e-05,40331.0,40328.0,0.00901754]
[1645212779458,0.06330077,40332.0,40328.0,0.00821212]
[1645212779758,0.51687825,40331.0,40323.0,0.4635607]
[1645212779957,0.57921847,40331.0,40323.0,0.224035]
[1645212780223,0.57921847,40331.0,40323.0,0.124035]
[1645212780421,0.25052017,40331.0,40323.0,0.124035]
[1645212780811,0.08937944,40329.0,40324.0,0.009662]
[1645212781412,0.08969766,40329.0,40324.0,0.009662]
[1645212781815,0.08969766,40329.0,40325.0,0.162017]
[1645212781816,0.00031822,40329.0,40325.0,0.162017]
[1645212782016,0.00031822,40330.0,40326.0,0.009664]
[1645212782320,0.02068355,40332.0,40329.0,0.33761971]
[1645212782321,0.00031822,40331.0,40329.0,0.33761971]
[1645212782514,0.00031822,40331.0,40327.0,0.124021]
[1645212782515,0.00128277,40332.0,40330.0,0.34774068]
[1645212782718,0.00031822,40331.0,40330.0,0.009659]
[1645212782914,0.00096455,40332.0,40330.0,0.009659]
[1645212783115,0.00096455,40332.0,40330.0,0.071662]
[1645212783315,0.00102968,40331.0,40330.0,0.07403039]
[1645212783718,0.00102968,40331.0,40330.0,0.01202739]
[1645212783954,0.00102968,40331.0,40330.0,0.00236839]
[1645212786760,0.00102968,40331.0,40330.0,0.01202639]
[1645212788003,0.00102968,40331.0,40330.0,0.35010807]
[1645212788403,0.00113712,40331.0,40330.0,0.45010807]
[1645212788602,0.00113712,40331.0,40330.0,0.75431446]
[1645212790007,0.00113712,40331.0,40330.0,0.80411446]
[1645212790406,0.00113712,40331.0,40330.0,0.81411446]
[1645212790805,0.00113712,40331.0,40330.0,0.47603278]
[1645212791464,0.00113712,40331.0,40330.0,0.81411446]
[1645212791659,0.00037898,40333.0,40331.0,1.45]
[1645212791855,0.00155718,40334.0,40333.0,1.15043455]
[1645212792057,0.00123896,40334.0,40333.0,1.77193523]
[1645212792256,0.00540674,40335.0,40334.0,0.55]
[1645212792456,0.01115424,40339.0,40334.0,0.55]
[1645212792457,0.00031822,40337.0,40335.0,1.05]
[1645212792759,0.01115424,40339.0,40335.0,1.05]
[1645212792762,0.00134782,40338.0,40337.0,0.009647]
[1645212793058,0.0010296,40338.0,40337.0,0.39752868]
[1645212793255,0.0010296,40338.0,40337.0,0.069347]
[1645212793456,0.01,40339.0,40337.0,0.50742868]
[1645212793658,1.822e-05,40341.0,40339.0,1.15]
[1645212793856,1.822e-05,40341.0,40340.0,0.209641]
[1645212794161,1.822e-05,40341.0,40340.0,0.209441]
[1645212794655,1.822e-05,40341.0,40340.0,0.54752268]
[1645212794855,1.822e-05,40341.0,40340.0,0.64752268]
[1645212795102,0.00028212,40343.0,40340.0,0.74752268]
[1645212795308,0.00031861,40349.0,40347.0,0.35]
[1645212795606,0.0421486,40356.0,40348.0,0.82405997]
[1645212795607,0.0319296,40356.0,40348.0,0.82405997]
[1645212795904,0.01,40359.0,40353.0,0.009617]
[1645212796103,0.01,40359.0,40355.0,0.1]
[1645212796305,0.005219,40361.0,40356.0,0.059412]
[1645212796505,0.00160416,40364.0,40360.0,0.223901]
[1645212796706,0.00160416,40364.0,40361.0,0.059403]
[1645212796903,0.00160416,40364.0,40361.0,0.121354]
[1645212797304,0.2291441,40364.0,40361.0,0.111751]
[1645212797503,0.03790283,40369.0,40361.0,0.0498]
[1645212797805,0.010219,40365.0,40362.0,0.009603]
[1645212799158,0.0004066,40366.0,40362.0,0.009603]
[1645212799358,0.0004066,40366.0,40361.0,0.111765]
[1645212799359,0.02943727,40366.0,40361.0,0.111765]
[1645212799555,0.010219,40365.0,40361.0,0.0498]
[1645212799755,0.010219,40365.0,40357.0,0.0094]
[1645212799955,0.010219,40365.0,40362.0,0.009601]
[1645212800156,0.01028014,40365.0,40362.0,0.009601]
[1645212800555,0.01028014,40365.0,40357.0,0.0094]
[1645212800556,0.24221409,40363.0,40357.0,0.0094]
[1645212800759,0.01028014,40365.0,40358.0,0.009602]
[1645212801058,0.072186,40365.0,40358.0,0.071571]
[1645212801257,0.010219,40365.0,40358.0,0.071571]
[1645212801456,0.010219,40365.0,40362.0,0.009601]
[1645212801457,6.114e-05,40364.0,40362.0,0.009601]
[1645212802056,6.114e-05,40364.0,40353.0,0.33523956]
[1645212802258,0.010219,40365.0,40356.0,0.12393]
[1645212802460,0.010219,40365.0,40364.0,0.00150531]
[1645212802699,0.01028014,40365.0,40364.0,0.00150531]
[1645212803501,0.010219,40365.0,40364.0,0.00150531]
[1645212804000,0.79854967,40365.0,40364.0,0.00150531]
[1645212804201,0.819519,40365.0,40364.0,0.00150531]
[1645212804405,0.769519,40365.0,40364.0,0.00150531]
[1645212804600,0.7593,40365.0,40364.0,0.00150531]
[1645212804902,0.7593,40365.0,40363.0,0.00102614]
[1645212804903,1.25779469,40364.0,40363.0,0.00102614]
[1645212805301,0.49849469,40364.0,40363.0,0.00102614]
[1645212805703,0.54849469,40364.0,40363.0,0.00102614]
[1645212806002,0.2,40361.0,40341.0,0.2]
[1645212806204,0.010219,40352.0,40341.0,0.2]
[1645212806455,0.01238477,40353.0,40346.0,0.34388648]
[1645212806654,0.05,40355.0,40347.0,0.009625]
[1645212806853,0.10421444,40358.0,40347.0,0.009625]
[1645212807057,0.10421444,40358.0,40345.0,0.12396]
[1645212807253,0.061987,40355.0,40345.0,0.12396]
[1645212807454,0.22869376,40352.0,40345.0,0.12396]
[1645212807855,0.06199537,40355.0,40342.0,0.009629]
[1645212808055,0.29727223,40356.0,40343.0,0.009629]
[1645212808254,0.123971,40355.0,40344.0,0.08059633]
[1645212808556,0.119122,40350.0,40344.0,0.009627]
[1645212808857,0.95179346,40348.0,40341.0,0.2]
[1645212809055,0.26631587,40346.0,40341.0,0.2]
[1645212809255,0.821302,40347.0,40341.0,0.2]
[1645212809659,0.11179654,40342.0,40341.0,0.2]
[1645212810411,0.11179654,40342.0,40341.0,0.51200209]
[1645212810611,0.009,40347.0,40341.0,0.209635]
[1645212810811,0.009,40347.0,40341.0,0.2]
[1645212811313,0.009,40347.0,40342.0,0.009634]
[1645212811512,0.00091691,40350.0,40343.0,0.009632]
[1645212811712,0.00091691,40350.0,40344.0,0.26570974]
[1645212811912,0.00091691,40350.0,40345.0,0.00963]
[1645212812113,0.88884639,40351.0,40344.0,0.26570974]
[1645212812317,0.88890752,40351.0,40344.0,0.26570974]
[1645212812714,0.88890752,40351.0,40345.0,0.061987]
[1645212812914,0.88890752,40351.0,40341.0,0.2]
[1645212812915,0.7593,40349.0,40341.0,0.2]
[1645212813118,0.7593,40342.0,40341.0,0.2]
[1645212813318,1.15723324,40342.0,40341.0,0.2]
[1645212813516,1.15723324,40342.0,40341.0,0.1481]
[1645212813957,0.7593,40340.0,40337.0,0.00018805]
[1645212814155,0.93833067,40338.0,40337.0,8.05e-06]
[1645212814361,1.62103267,40338.0,40337.0,8.05e-06]
[1645212814555,1.72083267,40338.0,40337.0,8.05e-06]
[1645212815157,0.7593,40334.0,40333.0,1.26e-05]
[1645212815361,1.75733971,40334.0,40333.0,1.26e-05]
[1645212815659,0.7593,40330.0,40322.0,0.010219]
[1645212815856,0.7593,40329.0,40322.0,0.010219]
[1645212816058,0.332702,40329.0,40322.0,0.010219]
[1645212816256,0.13098357,40323.0,40322.0,0.010219]
[1645212816655,0.13098357,40323.0,40322.0,0.019891]
[1645212816856,0.13098357,40323.0,40322.0,0.010219]
[1645212817061,1.092002,40322.0,40314.0,0.010219]
[1645212817258,1.36740837,40322.0,40320.0,7.255e-05]
[1645212817461,0.60810837,40322.0,40320.0,7.255e-05]
[1645212817704,0.60810837,40322.0,40321.0,0.257789]
[1645212817705,0.65810837,40322.0,40321.0,0.257789]
[1645212817903,0.65810837,40322.0,40321.0,0.133719]
[1645212818106,1.142002,40322.0,40321.0,0.133719]
[1645212818305,0.05,40322.0,40321.0,0.143393]
[1645212818905,0.0593,40330.0,40321.0,0.143393]
[1645212819105,0.7593,40326.0,40321.0,0.133719]
[1645212819305,0.85613365,40326.0,40321.0,0.133719]
[1645212819505,0.332702,40325.0,40321.0,0.133719]
[1645212819705,0.7593,40324.0,40321.0,0.13379154]
[1645212820108,0.7593,40323.0,40321.0,0.13379154]
[1645212820705,0.7593,40323.0,40321.0,0.133719]
[1645212821108,0.0095,40330.0,40322.0,0.009672]
[1645212821366,0.02903067,40335.0,40323.0,0.07096933]
[1645212821553,0.02903067,40335.0,40321.0,0.133719]
[1645212821752,0.34782989,40332.0,40323.0,0.07096933]
[1645212821952,0.10527989,40330.0,40325.0,0.30716625]
[1645212822151,0.10527989,40330.0,40326.0,7.254e-05]
[1645212822554,0.0591,40336.0,40326.0,7.254e-05]
[1645212822756,0.0591,40336.0,40327.0,0.062017]
[1645212823153,1.02136483,40335.0,40327.0,0.062017]
[1645212823353,0.7593,40333.0,40329.0,7.253e-05]
[1645212823554,0.332702,40332.0,40329.0,7.253e-05]
[1645212823753,1.092002,40331.0,40329.0,7.253e-05]
[1645212823954,0.322702,40330.0,40329.0,7.253e-05]
[1645212824155,1.082002,40330.0,40329.0,7.253e-05]
[1645212824352,1.082002,40330.0,40323.0,0.00131114]
[1645212824553,1.082002,40330.0,40327.0,7.254e-05]
[1645212824554,0.7593,40328.0,40327.0,7.254e-05]
[1645212824754,1.092002,40328.0,40327.0,7.254e-05]
[1645212825203,0.7593,40328.0,40327.0,7.254e-05]
[1645212825409,0.01579636,40329.0,40327.0,7.254e-05]
[1645212825603,0.01579636,40329.0,40323.0,0.00131114]
[1645212825803,0.01579636,40329.0,40325.0,6.427e-05]
[1645212825804,0.10658488,40327.0,40325.0,6.427e-05]
[1645212826505,0.01579636,40329.0,40325.0,6.427e-05]
[1645212826703,0.01579636,40329.0,40325.0,0.062022]
[1645212826905,0.78833067,40327.0,40324.0,6.428e-05]
[1645212827104,0.7593,40325.0,40324.0,6.428e-05]
[1645212827304,1.091979,40325.0,40324.0,6.428e-05]
[1645212827505,1.207388,40325.0,40324.0,6.428e-05]
[1645212827910,1.207388,40325.0,40322.0,0.00131341]
[1645212828105,1.091979,40324.0,40322.0,0.00137769]
[1645212828306,0.01659952,40323.0,40322.0,0.00137769]
[1645212829154,0.332679,40323.0,40322.0,0.00131341]
[1645212829355,1.091979,40323.0,40322.0,0.00131341]
[1645212829552,0.7593,40323.0,40322.0,0.00131341]
[1645212830754,1.091979,40323.0,40322.0,0.00131341]
[1645212830956,1.091979,40323.0,40321.0,1.241e-05]
[1645212830957,1.091979,40322.0,40321.0,1.241e-05]
[1645212831155,1.46741671,40322.0,40321.0,1.241e-05]
[1645212831355,1.61741671,40322.0,40321.0,1.241e-05]
[1645212831956,1.28020967,40322.0,40321.0,1.241e-05]
[1645212832356,1.48000967,40322.0,40321.0,1.241e-05]
[1645212832900,1.63000967,40322.0,40321.0,1.241e-05]
[1645212833301,1.77930967,40322.0,40321.0,1.241e-05]
[1645212834503,2.03707113,40322.0,40321.0,1.241e-05]
[1645212835304,1.77930967,40322.0,40321.0,1.241e-05]
[1645212835709,1.37950967,40322.0,40321.0,1.241e-05]
[1645212836369,1.642475,40322.0,40321.0,1.241e-05]
[1645212836563,1.37950967,40322.0,40321.0,1.241e-05]
[1645212836963,1.42930967,40322.0,40321.0,1.241e-05]
[1645212837164,1.48952867,40322.0,40321.0,1.241e-05]
[1645212837364,0.9086,40320.0,40319.0,9.98e-06]
[1645212837565,1.491079,40320.0,40311.0,0.01]
[1645212837765,1.43268396,40312.0,40311.0,0.01]
[1645212837966,0.72338396,40312.0,40311.0,0.01]
[1645212838165,1.63268396,40312.0,40311.0,0.01]
[1645212841009,1.30000496,40312.0,40311.0,0.01]
[1645212841409,0.91049529,40312.0,40311.0,0.01]
[1645212841608,0.15119529,40312.0,40311.0,0.01]
[1645212841808,0.10119529,40312.0,40311.0,0.01]
[1645212842406,0.43387429,40312.0,40311.0,0.01]
[1645212842607,0.7593,40317.0,40311.0,0.01]
[1645212842806,1.091979,40316.0,40311.0,0.01]
[1645212843005,0.00196953,40312.0,40311.0,0.01132851]
[1645212843221,1.09394853,40312.0,40311.0,0.01132851]
[1645212843407,0.33464853,40312.0,40311.0,0.01132851]
[1645212844057,0.00196953,40312.0,40311.0,0.01132851]
[1645212844258,0.00196953,40312.0,40311.0,0.03102851]
[1645212845058,0.00196953,40312.0,40311.0,0.37188825]
[1645212846059,0.00718853,40319.0,40311.0,0.03102851]
[1645212846262,0.00718853,40319.0,40311.0,0.41422625]
[1645212846460,0.7593,40318.0,40311.0,0.41422625]
[1645212846661,0.7593,40316.0,40311.0,0.01132851]
[1645212847060,0.332685,40318.0,40311.0,0.01132851]
[1645212847462,0.7593,40317.0,40311.0,0.01139223]
[1645212847702,0.7493,40317.0,40311.0,0.01139223]
[1645212848105,0.00197757,40312.0,40311.0,0.01139223]
[1645212848302,0.00197757,40312.0,40311.0,0.08704423]